fUST/lending_fUST_20250313
["ID","MTS","AMOUNT","RATE_DAILY","PERIOD"]
[356018403,1741801841512,-500.0,0.00021917,2]
[356018404,1741801841522,-500.0,0.00021917,2]
[356018405,1741801841532,-500.0,0.00021917,2]
[356018406,1741801841542,-500.0,0.00021917,2]
[356018407,1741801841551,-500.0,0.00021917,2]
[356018408,1741801841561,-500.0,0.00021917,2]
[356018409,1741801841570,-941.65,0.00021917,2]
[356018410,1741801841579,-363.762418,0.00021917,2]
[356018411,1741801841588,-363.762418,0.00021917,2]
[356018412,1741801841598,-500.0,0.00021917,2]
[356018413,1741801841607,-1940.69,0.00021917,2]
[356018414,1741801841616,-444.21,0.00021917,2]
[356018415,1741801841626,-500.0,0.00021917,2]
[356018416,1741801841635,-500.0,0.00021917,2]
[356018417,1741801841644,-500.0,0.00021917,2]
[356018418,1741801841654,-500.0,0.00021917,2]
[356018419,1741801841663,-500.0,0.00021917,2]
[356018420,1741801841672,-500.0,0.00021917,2]
[356018421,1741801841681,-500.0,0.00021917,2]
[356018422,1741801841691,-1653.47,0.00021917,2]
[356018423,1741801841700,-500.0,0.00021917,2]
[356018424,1741801841709,-500.0,0.00021917,2]
[356018425,1741801841721,-500.0,0.00021917,2]
[356018426,1741801841730,-1147.940402,0.00021917,2]
[356018427,1741801841739,-502.8718502,0.00021917,2]
[356018428,1741801841749,-500.0,0.00021917,2]
[356018429,1741801841759,-1147.940402,0.00021917,2]
[356018430,1741801841770,-500.0,0.00021917,2]
[356018431,1741801841780,-1014.91,0.00021917,2]
[356018432,1741801841789,-500.0,0.00021917,2]
[356018433,1741801841798,-687.430877,0.00021917,2]
[356018434,1741801841808,-500.0,0.00021917,2]
[356018435,1741801841818,-687.430877,0.00021917,2]
[356018436,1741801841827,-500.0,0.00021917,2]
[356018437,1741801841837,-1517.93,0.00021917,2]
[356018438,1741801841846,-978.28,0.00021917,2]
[356018439,1741801841856,-1967.165421,0.00021917,2]
[356018440,1741801841865,-500.0,0.00021917,2]
[356018441,1741801841874,-151.0,0.00021917,2]
[356018442,1741801841884,-1657.87,0.00021917,2]
[356018443,1741801841893,-500.0,0.00021917,2]
[356018444,1741801841902,-500.0,0.00021917,2]
[356018445,1741801841911,-500.0,0.00021917,2]
[356018446,1741801841921,-500.0,0.00021917,2]
[356018447,1741801841931,-500.0,0.00021917,2]
[356018448,1741801841942,-500.0,0.00021917,2]
[356018449,1741801841951,-500.0,0.00021917,2]
[356018450,1741801841962,-2690.92,0.00021917,2]
[356018451,1741801841975,-151.0,0.00021917,2]
[356018452,1741801841985,-549.9,0.00021917,2]
[356018453,1741801841995,-500.0,0.00021917,2]
[356018454,1741801842202,-500.0,0.00021917,2]
[356018455,1741801842216,-500.0,0.00021917,2]
[356018456,1741801842226,-500.0,0.00021917,2]
[356018457,1741801842236,-500.0,0.00021917,2]
[356018458,1741801842245,-698.21,0.00021917,2]
[356018459,1741801842254,-500.0,0.00021917,2]
[356018460,1741801842263,-633.54,0.00021917,2]
[356018461,1741801842272,-500.0,0.00021917,2]
[356018462,1741801842281,-500.0,0.00021917,2]
[356018463,1741801842294,-500.0,0.00021917,2]
[356018464,1741801842303,-599.96821378,0.00021917,2]
[356018465,1741801842312,-500.0,0.00021917,2]
[356018466,1741801842322,-500.0,0.00021917,2]
[356018467,1741801842331,-151.0,0.00021917,2]
[356018468,1741801842340,-500.0,0.00021917,2]
[356018469,1741801842349,-151.0,0.00021917,2]
[356018470,1741801842358,-407.03507838,0.00021917,2]
[356018471,1741801842367,-500.0,0.00021917,2]
[356018472,1741801842377,-151.0,0.00021917,2]
[356018473,1741801842386,-578.27,0.00021917,2]
[356018474,1741801842395,-500.0,0.00021917,2]
[356018475,1741801842404,-277.386886,0.00021917,2]
[356018476,1741801842413,-500.0,0.00021917,2]
[356018477,1741801842423,-500.0,0.00021917,2]
[356018478,1741801842432,-753.86,0.00021917,2]
[356018479,1741801842442,-151.0,0.00021917,2]
[356018480,1741801842451,-500.0,0.00021917,2]
[356018481,1741801842460,-1194.58,0.00021917,2]
[356018482,1741801842473,-500.0,0.00021917,2]
[356018483,1741801842483,-500.0,0.00021917,2]
[356018484,1741801842491,-275.21378886,0.00021917,2]
[356018485,1741801842500,-1162.58,0.00021917,2]
[356018486,1741801842509,-196.38011556,0.00021917,2]
[356018487,1741801842518,-500.0,0.00021917,2]
[356018488,1741801842528,-632.83,0.00021917,2]
[356018489,1741801842537,-500.0,0.00021917,2]
[356018490,1741801842547,-547.17,0.00021917,2]
[356018491,1741801842556,-1683.95,0.00021917,2]
[356018492,1741801842565,-2916.54,0.00021917,2]
[356018493,1741801842574,-500.0,0.00021917,2]
[356018494,1741801842584,-1402.25,0.00021917,2]
[356018495,1741801842593,-575.6037553,0.00021917,2]
[356018496,1741801842603,-1078.42,0.00021917,2]
[356018497,1741801842612,-500.0,0.00021917,2]
[356018498,1741801842622,-500.0,0.00021917,2]
[356018499,1741801842631,-500.0,0.00021917,2]
[356018500,1741801842640,-500.0,0.00021917,2]
[356018501,1741801842650,-724.62,0.00021917,2]
[356018502,1741801842659,-624.95,0.00021917,2]
[356018503,1741801842668,-6311.51,0.00021917,2]
[356018504,1741801842678,-2045.14,0.00021917,2]
[356018505,1741801842687,-500.0,0.00021917,2]
[356018506,1741801842696,-500.0,0.00021917,2]
[356018507,1741801842706,-500.0,0.00021917,2]
[356018508,1741801842715,-808.98,0.00021917,2]
[356018509,1741801842724,-500.0,0.00021917,2]
[356018510,1741801842734,-500.0,0.00021917,2]
[356018511,1741801842743,-500.0,0.00021917,2]
[356018512,1741801842752,-2269.97,0.00021917,2]
[356018513,1741801842765,-529.33,0.00021917,2]
[356018514,1741801842774,-500.0,0.00021917,2]
[356018515,1741801842783,-500.0,0.00021917,2]
[356018516,1741801842792,-500.0,0.00021917,2]
[356018517,1741801842802,-500.0,0.00021917,2]
[356018518,1741801842812,-545.1,0.00021917,2]
[356018519,1741801842821,-500.0,0.00021917,2]
[356018520,1741801842830,-824.2,0.00021917,2]
[356018521,1741801842839,-957.54,0.00021917,2]
[356018522,1741801842850,-500.0,0.00021917,2]
[356018523,1741801842859,-957.79,0.00021917,2]
[356018524,1741801842870,-500.0,0.00021917,2]
[356018525,1741801842879,-500.0,0.00021917,2]
[356018526,1741801842888,-1709.12,0.00021917,2]
[356018527,1741801842897,-151.0,0.00021917,2]
[356018528,1741801842907,-500.0,0.00021917,2]
[356018529,1741801842916,-500.0,0.00021917,2]
[356018530,1741801842925,-500.0,0.00021917,2]
[356018531,1741801842934,-500.0,0.00021917,2]
[356018532,1741801842944,-718.07,0.00021917,2]
[356018533,1741801842953,-679.51,0.00021917,2]
[356018534,1741801842964,-500.0,0.00021917,2]
[356018535,1741801842973,-151.0,0.00021917,2]
[356018536,1741801842982,-1040.11,0.00021917,2]
[356018537,1741801842992,-939.83,0.00021917,2]
[356018538,1741801843002,-151.0,0.00021917,2]
[356018539,1741801843011,-500.0,0.00021917,2]
[356018540,1741801843020,-2116.6,0.00021917,2]
[356018541,1741801843030,-500.0,0.00021917,2]
[356018542,1741801843039,-660.352814,0.00021917,2]
[356018543,1741801843048,-151.0,0.00021917,2]
[356018544,1741801843057,-1629.03,0.00021917,2]
[356018545,1741801843066,-235.810281,0.00021917,2]
[356018546,1741801843075,-660.352814,0.00021917,2]
[356018547,1741801843085,-500.0,0.00021917,2]
[356018548,1741801843094,-151.0,0.00021917,2]
[356018549,1741801843103,-500.0,0.00021917,2]
[356018550,1741801843113,-500.0,0.00021917,2]
[356018551,1741801843122,-235.810281,0.00021917,2]
[356018552,1741801843132,-500.0,0.00021917,2]
[356018554,1741801843142,-299.137883,0.00021917,2]
[356018555,1741801843151,-500.0,0.00021917,2]
[356018556,1741801843160,-500.0,0.00021917,2]
[356018557,1741801843169,-500.0,0.00021917,2]
[356018559,1741801843179,-500.0,0.00021917,2]
[356018560,1741801843188,-500.0,0.00021917,2]
[356018561,1741801843197,-299.137883,0.00021917,2]
[356018562,1741801843206,-816.35,0.00021917,2]
[356018563,1741801843217,-1005.21,0.00021917,2]
[356018564,1741801843227,-500.0,0.00021917,2]
[356018565,1741801843237,-524.1,0.00021917,2]
[356018566,1741801843246,-160.070529,0.00021917,2]
[356018567,1741801843255,-891.73,0.00021917,2]
[356018568,1741801843264,-564.23,0.00021917,2]
[356018569,1741801843273,-13000.85,0.00021917,2]
[356018570,1741801843283,-500.0,0.00021917,2]
[356018571,1741801843293,-151.0,0.00021917,2]
[356018572,1741801843302,-151.0,0.00021917,2]
[356018573,1741801843311,-3037.13093,0.00021917,2]
[356018574,1741801843321,-1232.16,0.00021917,2]
[356018575,1741801843330,-500.0,0.00021917,2]
[356018576,1741801843340,-3037.13093,0.00021917,2]
[356018577,1741801843349,-500.0,0.00021917,2]
[356018578,1741801843358,-151.0,0.00021917,2]
[356018579,1741801843367,-500.0,0.00021917,2]
[356018580,1741801843377,-500.0,0.00021917,2]
[356018581,1741801843386,-500.0,0.00021917,2]
[356018582,1741801843395,-151.0,0.00021917,2]
[356018583,1741801843404,-500.0,0.00021917,2]
[356018584,1741801843413,-1185.88,0.00021917,2]
[356018585,1741801843423,-151.0,0.00021917,2]
[356018586,1741801843432,-151.0,0.00021917,2]
[356018587,1741801843441,-517.06809337,0.00021917,2]
[356018588,1741801843450,-808.87,0.00021917,2]
[356018589,1741801843459,-500.0,0.00021917,2]
[356018590,1741801843471,-500.0,0.00021917,2]
[356018591,1741801843479,-3933.91,0.00021917,2]
[356018592,1741801843488,-151.0,0.00021917,2]
[356018593,1741801843497,-500.0,0.00021917,2]
[356018594,1741801843507,-500.0,0.00021917,2]
[356018595,1741801843517,-500.0,0.00021917,2]
[356018596,1741801843526,-151.0,0.00021917,2]
[356018597,1741801843535,-151.0,0.00021917,2]
[356018598,1741801843545,-500.0,0.00021917,2]
[356018599,1741801843554,-500.0,0.00021917,2]
[356018600,1741801843563,-507.06480476,0.00021917,2]
[356018601,1741801843572,-500.0,0.00021917,2]
[356018602,1741801843581,-1330.27,0.00021917,2]
[356018603,1741801843591,-678.35,0.00021917,2]
[356018604,1741801843600,-500.0,0.00021917,2]
[356018606,1741801843609,-500.0,0.00021917,2]
[356018607,1741801843618,-500.0,0.00021917,2]
[356018608,1741801843627,-500.0,0.00021917,2]
[356018610,1741801843636,-1363.01,0.00021917,2]
[356018612,1741801843645,-930.27,0.00021917,2]
[356018613,1741801843655,-584.57,0.00021917,2]
[356018614,1741801843664,-500.0,0.00021917,2]
[356018615,1741801843673,-515.58448178,0.00021917,2]
[356018616,1741801843682,-500.0,0.00021917,2]
[356018617,1741801843691,-500.0,0.00021917,2]
[356018618,1741801843700,-500.0,0.00021917,2]
[356018619,1741801843709,-1222.75,0.00021917,2]
[356018620,1741801843720,-500.0,0.00021917,2]
[356018622,1741801843729,-516.45559555,0.00021917,2]
[356018624,1741801843739,-500.0,0.00021917,2]
[356018625,1741801843748,-200.0,0.00021917,2]
[356018627,1741801843758,-1188.29,0.00021917,2]
[356018628,1741801843767,-500.0,0.00021917,2]
[356018629,1741801843780,-1226.29,0.00021917,2]
[356018630,1741801843789,-1000.0,0.00021917,7]
[356018631,1741801843798,-26423.23,0.00021917,2]
[356018632,1741801843807,-151.0,0.00021917,2]
[356018633,1741801843818,-151.0,0.00021917,2]
[356018634,1741801843828,-500.0,0.00021917,2]
[356018635,1741801843838,-500.0,0.00021917,2]
[356018636,1741801843849,-151.0,0.00021917,2]
[356018637,1741801843858,-197.077683,0.00021917,2]
[356018638,1741801843867,-151.0,0.00021917,2]
[356018639,1741801843876,-197.077683,0.00021917,2]
[356018640,1741801843886,-500.0,0.00021917,2]
[356018641,1741801843895,-500.0,0.00021917,2]
[356018642,1741801843904,-500.0,0.00021917,2]
[356018643,1741801843914,-965.48,0.00021917,2]
[356018644,1741801843923,-500.0,0.00021917,2]
[356018645,1741801843933,-500.0,0.00021917,2]
[356018646,1741801843943,-197.077683,0.00021917,2]
[356018647,1741801843952,-500.0,0.00021917,2]
[356018648,1741801843961,-197.077683,0.00021917,2]
[356018649,1741801843972,-500.0,0.00021917,2]
[356018650,1741801843981,-151.0,0.00021917,2]
[356018651,1741801843991,-151.0,0.00021917,2]
[356018652,1741801844000,-500.0,0.00021917,2]
[356018653,1741801844010,-500.0,0.00021917,2]
[356018654,1741801844019,-750.87,0.00021917,2]
[356018655,1741801844028,-500.0,0.00021917,2]
[356018656,1741801844037,-990.05,0.00021917,2]
[356018657,1741801844047,-499.9972816,0.00021917,2]
[356018658,1741801844056,-500.0,0.00021917,2]
[356018659,1741801844066,-500.0,0.00021917,2]
[356018660,1741801844075,-500.0,0.00021917,2]
[356018661,1741801844084,-500.0,0.00021917,2]
[356018662,1741801844094,-500.0,0.00021917,2]
[356018663,1741801844104,-500.0,0.00021917,2]
[356018664,1741801844113,-593.0627324,0.00021917,2]
[356018665,1741801844122,-500.0,0.00021917,2]
[356018666,1741801844132,-2016.92,0.00021917,2]
[356018667,1741801844141,-500.0,0.00021917,2]
[356018668,1741801844150,-847.73,0.00021917,2]
[356018669,1741801844159,-500.0,0.00021917,2]
[356018670,1741801844169,-868.86,0.00021917,2]
[356018671,1741801844178,-579.89127843,0.00021917,2]
[356018672,1741801844187,-595.69,0.00021917,2]
[356018673,1741801844196,-500.0,0.00021917,2]
[356018674,1741801844206,-500.0,0.00021917,2]
[356018675,1741801844216,-552.32441203,0.00021917,2]
[356018676,1741801844225,-151.0,0.00021917,2]
[356018677,1741801844235,-151.0,0.00021917,2]
[356018678,1741801844244,-151.0,0.00021917,2]
[356018679,1741801844254,-151.0,0.00021917,2]
[356018680,1741801844263,-500.0,0.00021917,2]
[356018681,1741801844272,-500.0,0.00021917,2]
[356018682,1741801844281,-500.0,0.00021917,2]
[356018683,1741801844291,-1020.01,0.00021917,2]
[356018684,1741801844301,-151.0,0.00021917,2]
[356018685,1741801844311,-151.0,0.00021917,2]
[356018686,1741801844320,-500.0,0.00021917,2]
[356018687,1741801844330,-3074.55,0.00021917,2]
[356018688,1741801844340,-337.003428,0.00021917,2]
[356018689,1741801844349,-500.0,0.00021917,2]
[356018690,1741801844359,-337.003428,0.00021917,2]
[356018691,1741801844368,-151.0,0.00021917,2]
[356018692,1741801844378,-151.0,0.00021917,2]
[356018693,1741801844387,-337.003428,0.00021917,2]
[356018694,1741801844397,-337.003428,0.00021917,2]
[356018695,1741801844406,-500.0,0.00021917,2]
[356018696,1741801844416,-1181.64,0.00021917,2]
[356018697,1741801844425,-686.57,0.00021917,2]
[356018698,1741801844435,-547.1,0.00021917,2]
[356018699,1741801844444,-2755.37,0.00021917,2]
[356018701,1741801844453,-500.0,0.00021917,2]
[356018702,1741801844463,-2339.2,0.00021917,2]
[356018703,1741801844474,-500.0,0.00021917,2]
[356018704,1741801844483,-815.47,0.00021917,2]
[356018705,1741801844492,-500.0,0.00021917,2]
[356018706,1741801844502,-625.28,0.00021917,2]
[356018707,1741801844512,-500.0,0.00021917,2]
[356018708,1741801844521,-500.0,0.00021917,2]
[356018709,1741801844531,-1313.23,0.00021917,2]
[356018710,1741801844540,-500.0,0.00021917,2]
[356018711,1741801844550,-1591.97,0.00021917,2]
[356018712,1741801844559,-500.0,0.00021917,2]
[356018714,1741801844569,-434.81598272,0.00021917,2]
[356018716,1741801844578,-151.0,0.00021917,2]
[356018717,1741801844588,-179.693574,0.00021917,2]
[356018719,1741801844597,-500.0,0.00021917,2]
[356018721,1741801844607,-929.66,0.00021917,2]
[356018723,1741801844616,-500.0,0.00021917,2]
[356018725,1741801844626,-500.0,0.00021917,2]
[356018726,1741801844636,-500.0,0.00021917,2]
[356018727,1741801844645,-500.0,0.00021917,2]
[356018729,1741801844654,-500.0,0.00021917,2]
[356018730,1741801844663,-731.77,0.00021917,2]
[356018731,1741801844673,-2092.64,0.00021917,2]
[356018732,1741801844682,-151.0,0.00021918,2]
[356018733,1741801844692,-151.0,0.00021918,2]
[356018734,1741801844701,-552.97710927,0.00021957,2]
[356018735,1741801844710,-832.779583,0.00021959,2]
[356018736,1741801844722,-4459.79,0.00021969,2]
[356018737,1741801844732,-500.0,0.00021973,2]
[356018738,1741801844742,-277.43519169,0.00021973,2]
[356018739,1741801844751,-500.0,0.00021973,2]
[356018740,1741801844762,-500.0,0.00021973,2]
[356018741,1741801844774,-500.0,0.00021973,2]
[356018742,1741801844783,-300.0,0.00021973,2]
[356018743,1741801844792,-485.33174382,0.00021973,2]
[356018744,1741801844803,-548.86546505,0.00021973,2]
[356018745,1741801844812,-500.0,0.00021973,2]
[356018746,1741801844821,-599.82939063,0.00021973,2]
[356018747,1741801844831,-416.75644841,0.00021973,2]
[356018748,1741801844841,-500.0,0.00021973,2]
[356018749,1741801844851,-554.78706975,0.00021973,2]
[356018750,1741801844861,-500.0,0.00021973,2]
[356018751,1741801844871,-500.0,0.00021973,2]
[356018752,1741801844880,-500.0,0.00021973,2]
[356018753,1741801844890,-500.0,0.00021973,2]
[356018754,1741801844899,-500.0,0.00021973,2]
[356018755,1741801844909,-500.0,0.00021973,2]
[356018756,1741801844918,-500.0,0.00021973,2]
[356018757,1741801844928,-506.25661435,0.00021973,2]
[356018758,1741801844937,-500.0,0.00021973,2]
[356018759,1741801844947,-500.0,0.00021973,2]
[356018760,1741801844956,-500.0,0.00021973,2]
[356018761,1741801844966,-500.0,0.00021973,2]
[356018762,1741801844976,-500.0,0.00021973,2]
[356018763,1741801844985,-313.62809527,0.00021973,2]
[356018764,1741801844994,-500.0,0.00021973,2]
[356018765,1741801845004,-500.0,0.00021973,2]
[356018766,1741801845013,-225.92834623,0.00021973,2]
[356018767,1741801845022,-315.14321334,0.00021973,2]
[356018768,1741801845032,-500.0,0.00021973,2]
[356018769,1741801845041,-500.0,0.00021973,2]
[356018770,1741801845050,-166.97971497,0.00021973,2]
[356018771,1741801845060,-285.69642306,0.00021973,2]
[356018772,1741801845069,-500.0,0.00021973,2]
[356018773,1741801845079,-500.0,0.00021973,2]
[356018774,1741801845088,-500.0,0.00021973,2]
[356018775,1741801845097,-500.0,0.00021973,2]
[356018776,1741801845107,-500.0,0.00021973,2]
[356018777,1741801845116,-500.0,0.00021973,2]
[356018778,1741801845125,-500.0,0.00021973,2]
[356018779,1741801845135,-500.0,0.00021973,2]
[356018780,1741801845144,-500.0,0.00021973,2]
[356018781,1741801845153,-500.0,0.00021973,2]
[356018782,1741801845162,-500.0,0.00021973,2]
[356018783,1741801845172,-500.0,0.00021973,2]
[356018784,1741801845181,-500.0,0.00021973,2]
[356018785,1741801845191,-500.0,0.00021973,2]
[356018786,1741801845200,-500.0,0.00021973,2]
[356018787,1741801845209,-500.0,0.00021973,2]
[356018788,1741801845220,-500.0,0.00021973,2]
[356018789,1741801845229,-200.009412,0.00021973,2]
[356018790,1741801845239,-392.18404094,0.00021973,2]
[356018791,1741801845248,-612.48701335,0.00021973,2]
[356018792,1741801845258,-500.0,0.00021973,2]
[356018793,1741801845267,-500.0,0.00021973,2]
[356018794,1741801845276,-161.87639361,0.00021973,2]
[356018795,1741801845285,-500.0,0.00021973,2]
[356018796,1741801845295,-500.0,0.00021973,2]
[356018797,1741801845305,-501.26208016,0.00021973,2]
[356018798,1741801845314,-500.0,0.00021973,2]
[356018799,1741801845324,-500.0,0.00021973,2]
[356018800,1741801845333,-603.1910099,0.00021973,2]
[356018801,1741801845343,-371.84928285,0.00021973,2]
[356018802,1741801845353,-230.31197625,0.00021973,2]
[356018803,1741801845363,-500.0,0.00021973,2]
[356018804,1741801845372,-500.0,0.00021973,2]
[356018805,1741801845381,-500.0,0.00021973,2]
[356018806,1741801845391,-363.762418,0.00021973,7]
[356018807,1741801845400,-363.762418,0.00021973,7]
[356018808,1741801845410,-1147.940402,0.00021973,7]
[356018809,1741801845419,-1147.940402,0.00021973,7]
[356018810,1741801845429,-687.430877,0.00021973,7]
[356018811,1741801845438,-687.430877,0.00021973,7]
[356018812,1741801845448,-1967.165421,0.00021973,7]
[356018813,1741801845457,-151.0,0.00021973,7]
[356018814,1741801845467,-151.0,0.00021973,7]
[356018815,1741801845477,-151.0,0.00021973,7]
[356018816,1741801845486,-151.0,0.00021973,7]
[356018817,1741801845495,-151.0,0.00021973,7]
[356018818,1741801845505,-151.0,0.00021973,7]
[356018819,1741801845514,-151.0,0.00021973,7]
[356018820,1741801845524,-151.0,0.00021973,7]
[356018821,1741801845534,-151.0,0.00021973,7]
[356018822,1741801845543,-660.352814,0.00021973,7]
[356018823,1741801845552,-243.48525,0.00021973,7]
[356018824,1741801845562,-160.0,0.00021973,7]
[356018825,1741801845572,-235.810281,0.00021973,7]
[356018826,1741801845582,-660.352814,0.00021973,7]
[356018827,1741801845591,-235.810281,0.00021973,7]
[356018828,1741801845601,-299.137883,0.00021973,7]
[356018829,1741801845611,-299.137883,0.00021973,7]
[356018830,1741801845620,-3037.13093,0.00021973,7]
[356018831,1741801845631,-3037.13093,0.00021973,7]
[356018832,1741801845820,-151.0,0.00021973,7]
[356018833,1741801845830,-153.748728,0.00021973,7]
[356018834,1741801845840,-160.0,0.00021973,7]
[356018835,1741801845851,-200.0,0.00021997,2]
[356018836,1741801845861,-4857.14506102,0.00021999,5]
[356018837,1741801845870,-55255.37752526,0.00022,5]
[356018838,1741801845880,-6291.58032569,0.00022,2]
[356018839,1741801845890,-151.0,0.00022,7]
[356018840,1741801845899,-161.492389,0.00022,7]
[356018841,1741801845909,-161.492389,0.00022,7]
[356018842,1741801845919,-172.485941,0.00022,7]
[356018843,1741801845929,-172.485941,0.00022,7]
[356018844,1741801845938,-151.0,0.00022,7]
[356018845,1741801845947,-151.0,0.00022,7]
[356018846,1741801845957,-151.0,0.00022,7]
[356018847,1741801845967,-153.0,0.00022,2]
[356018848,1741801845976,-720.17931274,0.00022032,2]
[356018849,1741801845985,-3000.0,0.00022091,2]
[356018850,1741801845994,-174.09255559,0.00022133,2]
[356018851,1741801846003,-500.0,0.00022173,2]
[356018852,1741801846012,-500.0,0.00022173,2]
[356018853,1741801846021,-547.811,0.00022173,2]
[356018854,1741801846030,-175.31412188,0.00022173,2]
[356018855,1741801846040,-196.72406867,0.0002219,2]
[356018856,1741801846049,-151.0,0.00022191,7]
[356018857,1741801846058,-151.0,0.00022191,7]
[356018858,1741801846067,-151.0,0.00022191,7]
[356018859,1741801846076,-151.0,0.00022191,7]
[356018860,1741801846086,-151.0,0.00022191,7]
[356018861,1741801846096,-151.0,0.00022191,7]
[356018862,1741801846105,-151.0,0.00022191,7]
[356018864,1741801846114,-151.0,0.00022191,7]
[356018865,1741801846124,-204.882462,0.00022191,7]
[356018866,1741801846134,-204.882462,0.00022191,7]
[356018867,1741801846143,-204.882462,0.00022191,7]
[356018868,1741801846153,-151.151161,0.00022191,7]
[356018869,1741801846162,-500.0,0.00022191,2]
[356018870,1741801846171,-624.27,0.00022191,2]
[356018871,1741801846180,-500.0,0.00022191,2]
[356018872,1741801846190,-500.0,0.00022191,2]
[356018873,1741801846199,-151.0,0.00022191,7]
[356018874,1741801846209,-151.417655,0.00022191,7]
[356018875,1741801846219,-520.04526823,0.00022191,2]
[356018876,1741801846229,-500.0,0.00022191,2]
[356018877,1741801846238,-500.0,0.00022191,2]
[356018878,1741801846248,-508.30602889,0.00022191,2]
[356018879,1741801846257,-871.89,0.00022191,2]
[356018880,1741801846266,-503.63777399,0.00022191,2]
[356018881,1741801846275,-151.0,0.00022191,7]
[356018883,1741801846285,-151.0,0.00022191,7]
[356018884,1741801846294,-152.489382,0.00022191,7]
[356018885,1741801846303,-606.26,0.00022191,2]
[356018886,1741801846313,-500.0,0.00022191,2]
[356018887,1741801846322,-500.0,0.00022191,2]
[356018888,1741801846331,-500.0,0.00022191,2]
[356018889,1741801846340,-880.95,0.00022191,2]
[356018890,1741801846349,-165.234174,0.00022191,7]
[356018892,1741801846359,-500.0,0.00022191,2]
[356018893,1741801846368,-500.0,0.00022191,2]
[356018894,1741801846377,-151.0,0.00022191,7]
[356018895,1741801846387,-151.0,0.00022191,7]
[356018896,1741801846396,-500.0,0.00022191,2]
[356018897,1741801846406,-500.0,0.00022191,2]
[356018898,1741801846415,-604.58641675,0.00022191,2]
[356018899,1741801846424,-688.2,0.00022191,2]
[356018900,1741801846433,-500.0,0.00022191,2]
[356018901,1741801846442,-500.0,0.00022191,2]
[356018902,1741801846451,-1015.86,0.00022191,2]
[356018903,1741801846461,-500.0,0.00022191,5]
[356018904,1741801846472,-500.0,0.00022191,2]
[356018905,1741801846481,-500.0,0.00022191,2]
[356018906,1741801846490,-151.0,0.00022191,7]
[356018907,1741801846499,-151.0,0.00022191,7]
[356018908,1741801846509,-151.0,0.00022191,7]
[356018909,1741801846518,-151.0,0.00022191,7]
[356018910,1741801846528,-151.0,0.00022191,7]
[356018911,1741801846537,-151.0,0.00022191,7]
[356018912,1741801846547,-151.0,0.00022191,7]
[356018913,1741801846556,-151.0,0.00022191,7]
[356018914,1741801846565,-514.1262304,0.00022191,2]
[356018915,1741801846574,-151.0,0.00022191,7]
[356018917,1741801846584,-151.0,0.00022191,7]
[356018919,1741801846593,-151.0,0.00022191,7]
[356018920,1741801846602,-151.0,0.00022191,7]
[356018921,1741801846611,-500.0,0.00022191,2]
[356018922,1741801846620,-511.02908351,0.00022191,2]
[356018923,1741801846628,-500.0,0.00022191,2]